bitfinex/quotes_SOLUSD_20240809
["timestamp","ask_amount","ask_price","bid_price","bid_amount"]
[1723196116572,33.2599,158.23,158.18,6.3218]
[1723196116781,26.94,158.21,158.13,58.0114]
[1723196116980,26.94,158.2,158.15,6.3228]
[1723196117188,26.94,158.18,158.13,31.0714]
[1723196117375,26.94,158.16,158.12,6.3242]
[1723196117779,6.2639,158.21,158.11,6.3246]
[1723196117780,26.94,158.15,158.11,6.3246]
[1723196118601,6.3228,158.16,158.1,15.8125]
[1723196118602,26.94,158.16,158.13,6.3238]
[1723196118797,45.0,158.15,158.12,6.3242]
[1723196120585,45.0,158.15,158.11,6.3246]
[1723196120586,71.94,158.15,158.11,6.3246]
[1723196120807,26.94,158.14,158.1,22.1374]
[1723196121576,26.94,158.14,158.1,15.8125]
[1723196121577,26.94,158.13,158.1,15.8125]
[1723196121780,45.0,158.12,158.1,15.8125]
[1723196121998,71.94,158.12,158.1,15.8125]
[1723196122280,71.94,158.12,158.08,6.3258]
[1723196122583,71.94,158.12,158.09,6.3254]
[1723196123123,26.94,158.1,158.07,6.3262]
[1723196123325,26.94,158.08,158.03,15.8195]
[1723196123521,26.94,158.08,158.04,6.3271]
[1723196123683,26.94,158.08,158.05,6.327]
[1723196124021,26.94,158.12,158.04,26.94]
[1723196124181,45.0,158.11,158.06,26.94]
[1723196124384,26.94,158.13,158.06,26.94]
[1723196124583,71.94,158.12,158.07,15.815]
[1723196125113,26.94,158.11,158.04,15.8185]
[1723196125319,78.2655,158.1,158.05,6.327]
[1723196125619,26.94,158.06,158.02,6.3282]
[1723196125792,26.94,158.05,158.02,6.3282]
[1723196125997,26.94,158.06,158.02,6.3282]
[1723196126806,26.94,158.06,158.03,6.3278]
[1723196128291,45.0,158.05,158.02,6.3282]
[1723196128493,71.94,158.05,158.01,6.3286]
[1723196128805,45.0,158.05,158.03,6.3277]
[1723196129589,45.0,158.05,158.02,6.3283]
[1723196129886,71.94,158.05,158.01,6.3286]
[1723196130087,71.94,158.05,158.02,6.3282]
[1723196130310,45.0,158.05,158.02,6.3282]
[1723196130505,78.2672,158.05,158.0,22.151]
[1723196130712,33.2675,158.04,158.0,22.151]
[1723196131015,26.94,158.01,157.97,15.8254]
[1723196131304,26.94,157.98,157.95,6.331]
[1723196131698,45.0,157.97,157.94,15.8284]
[1723196131902,71.94,157.97,157.94,15.8284]
[1723196133323,26.94,157.95,157.91,15.8314]
[1723196133517,26.94,157.92,157.85,38.0058]
[1723196133806,26.94,157.95,157.88,42.7746]
[1723196134017,45.0,157.94,157.88,42.7746]
[1723196134506,45.0,157.94,157.91,6.3323]
[1723196134710,45.0,157.95,157.91,6.3323]
[1723196134919,71.94,157.95,157.91,6.3323]
[1723196135412,71.94,157.95,157.92,6.3322]
[1723196135604,45.0,157.95,157.92,6.3322]
[1723196136112,26.94,157.97,157.93,6.3319]
[1723196136311,26.94,157.99,157.92,26.94]
[1723196136525,26.94,158.01,157.97,6.3302]
[1723196136902,26.94,158.02,157.98,6.3299]
[1723196137107,26.94,158.01,157.97,6.3302]
[1723196138018,45.0,158.0,157.98,6.3298]
[1723196138317,26.94,158.03,157.99,6.3294]
[1723196138618,6.3275,158.04,157.99,6.3294]
[1723196138619,33.2675,158.04,157.99,6.3294]
[1723196138917,26.94,158.03,157.99,6.3294]
[1723196139244,6.3275,158.04,157.99,6.3291]
[1723196139245,26.94,158.04,157.99,6.3291]
[1723196139408,26.94,158.05,158.0,6.3289]
[1723196141023,45.0,158.04,158.0,6.3289]
[1723196141396,71.94,158.04,158.0,6.3289]
[1723196141718,71.94,158.04,157.98,15.824]
[1723196141902,71.94,158.04,158.0,6.329]
[1723196142102,71.94,158.04,157.98,15.824]
[1723196142515,26.94,158.03,157.98,15.824]
[1723196142717,71.94,158.02,157.98,15.824]
[1723196142920,33.2687,158.01,157.95,15.8274]
[1723196143103,6.3292,158.0,157.95,22.1584]
[1723196143302,71.94,157.99,157.96,6.3307]
[1723196143813,71.94,157.99,157.95,22.1584]
[1723196144013,71.94,157.99,157.95,15.8274]
[1723196144014,78.2695,157.99,157.95,15.8274]
[1723196144224,71.94,157.99,157.95,22.1585]
[1723196145634,78.2695,157.99,157.95,22.1585]
[1723196145814,71.94,157.99,157.95,22.1585]
[1723196146402,26.94,157.98,157.96,6.3306]
[1723196146602,45.0,157.99,157.96,6.3306]
[1723196146828,26.94,158.0,157.97,6.3302]
[1723196147021,33.2691,158.0,157.96,6.3306]
[1723196147630,33.2691,158.0,157.95,22.1584]
[1723196147808,78.2695,157.99,157.95,22.1584]
[1723196148199,26.94,157.98,157.95,22.1584]
[1723196148423,71.94,157.99,157.95,22.1584]
[1723196149013,71.94,157.99,157.96,6.3305]
[1723196151330,26.94,157.99,157.96,6.3306]
[1723196152230,26.94,157.99,157.97,6.3302]
[1723196153110,26.94,158.02,158.0,6.3291]
[1723196153311,45.0,158.01,158.0,6.3291]
[1723196153718,45.0,158.01,157.99,6.3294]
[1723196154120,45.0,158.01,157.98,6.3298]
[1723196155328,26.94,158.02,157.99,6.3293]
[1723196155537,26.94,158.03,157.97,15.8249]
[1723196155734,45.0,158.02,158.0,6.329]
[1723196155931,26.94,158.04,158.0,6.329]
[1723196156137,26.94,158.04,158.01,6.3286]
[1723196156641,26.94,158.04,158.0,6.329]
[1723196157435,26.94,158.05,158.01,6.3286]
[1723196157735,33.2667,158.06,158.02,6.3282]
[1723196158325,33.2667,158.06,158.01,22.1496]
[1723196158645,26.94,158.05,158.01,22.1496]
[1723196159438,26.94,158.03,157.97,15.8249]
[1723196159741,26.94,158.03,157.99,6.3294]
[1723196159940,26.94,158.02,157.99,6.3294]
[1723196160437,26.94,158.0,157.97,15.8249]
[1723196160739,26.94,158.0,157.97,22.1551]
[1723196160931,26.94,158.0,157.98,6.3298]
[1723196161120,26.94,158.01,157.98,6.3298]
[1723196161535,33.2687,158.01,157.97,15.8249]
[1723196161839,33.2687,158.01,157.94,6.1101]
[1723196161840,26.94,157.98,157.94,6.3314]
[1723196162037,26.94,157.98,157.93,15.829]
[1723196162038,26.94,157.97,157.93,22.1609]
[1723196162216,18.44901615,158.06,157.94,26.94]
[1723196162416,26.94,158.01,157.99,6.3291]
[1723196162636,26.94,158.01,157.95,1.26591863]
[1723196162839,26.94,158.01,157.98,6.3298]
[1723196165444,26.94,158.02,157.98,6.3298]
[1723196165647,45.0,158.01,157.98,6.3298]
[1723196166537,45.0,158.01,157.91,1.26592789]
[1723196166538,26.94,157.99,157.86,22.3866]
[1723196166735,26.94,157.94,157.87,26.94]
[1723196166935,26.94,157.94,157.87,42.7753]
[1723196167143,33.2716,157.94,157.9,6.333]
[1723196167330,26.94,157.97,157.89,26.94]
[1723196167537,45.0,157.96,157.91,15.8311]
[1723196168225,71.94,157.96,157.91,15.8311]
[1723196168419,6.3312,157.95,157.91,15.8311]
[1723196168731,33.2712,157.95,157.91,22.1637]
[1723196168928,26.94,157.95,157.88,15.8347]
[1723196169148,51.3315,157.94,157.89,6.3331]
[1723196169449,45.0,157.94,157.9,15.8318]
[1723196169834,26.94,157.96,157.9,15.8318]
[1723196170141,45.0,157.95,157.9,15.8318]
[1723196170341,45.0,157.96,157.9,15.8318]
[1723196170544,26.94,157.95,157.9,15.8318]
[1723196170856,26.94,157.94,157.9,15.8318]
[1723196171026,45.0,157.93,157.9,15.8318]
[1723196171229,26.94,157.92,157.87,15.8356]
[1723196171422,45.0,157.93,157.78,280.09825453]
[1723196171423,26.94,157.9,157.84,15.8388]
[1723196171627,45.0,157.93,157.83,6.3356]
[1723196171628,6.3337,157.89,157.83,6.3356]
[1723196171852,6.3337,157.89,157.81,58.9331]
[1723196171853,45.0,157.88,157.81,58.9331]
[1723196172443,51.3341,157.88,157.83,6.3356]
[1723196173045,26.94,157.91,157.84,26.94]
[1723196173227,51.3332,157.9,157.85,6.3349]
[1723196173430,78.2732,157.9,157.85,6.335]
[1723196173627,26.94,157.92,157.85,15.8371]
[1723196173850,45.0,157.91,157.88,6.3339]
[1723196174034,45.0,157.91,157.86,6.3345]
[1723196174035,51.3328,157.91,157.86,6.3345]
[1723196174440,78.2728,157.91,157.86,6.3345]
[1723196174637,78.2728,157.91,157.87,6.3343]
[1723196174886,12.722,157.96,157.9,6.3328]
[1723196175158,33.2715,157.94,157.89,15.8332]
[1723196175361,33.2719,157.93,157.88,6.3336]
[1723196176247,45.0,157.92,157.88,6.3336]
[1723196176438,45.0,157.92,157.86,42.7767]
[1723196176843,45.0,157.93,157.89,6.3333]
[1723196177147,33.2711,157.95,157.9,6.3331]
[1723196177541,26.94,157.95,157.9,6.3331]
[1723196178250,45.0,157.94,157.9,6.3331]
[1723196178451,45.0,157.94,157.91,6.3325]
[1723196178648,26.94,157.96,157.91,6.3325]
[1723196178851,45.0,157.95,157.92,6.3321]
[1723196179032,45.0,157.95,157.91,6.3326]
[1723196179241,33.2715,157.94,157.89,6.3331]
[1723196179433,51.3319,157.93,157.88,6.3339]
[1723196179857,45.0,157.93,157.88,6.3339]
[1723196180043,45.0,157.93,157.87,15.8357]
[1723196180233,45.0,157.93,157.9,6.3329]
[1723196180631,26.94,157.95,157.91,6.3326]
[1723196180950,26.94,157.95,157.92,6.3322]
[1723196181149,33.2708,157.96,157.9,6.3327]
[1723196181364,26.94,157.94,157.89,22.1663]
[1723196181539,45.0,157.93,157.89,15.8329]
[1723196181738,26.94,157.92,157.86,6.3346]
[1723196181944,51.333,157.91,157.86,6.3346]
[1723196182959,33.2732,157.9,157.85,22.1718]
[1723196183143,45.0,157.89,157.85,22.1718]
[1723196183646,78.2735,157.89,157.85,15.8368]
[1723196184456,6.1039,157.97,157.87,15.8349]
[1723196184755,26.94,157.92,157.87,15.8349]
[1723196184958,33.2724,157.92,157.87,22.1692]
[1723196185751,6.3328,157.91,157.87,15.8349]
[1723196185936,26.94,157.92,157.87,15.8349]
[1723196186337,6.3331,157.9,157.85,6.335]
[1723196186638,45.0,157.89,157.85,6.335]
[1723196187050,26.94,157.88,157.84,22.1741]
[1723196187247,45.0,157.87,157.84,15.8387]
[1723196187452,71.94,157.87,157.84,15.8387]
[1723196187959,45.0,157.87,157.84,22.1741]
[1723196188250,26.94,157.89,157.85,6.3351]
[1723196188557,33.2736,157.89,157.84,22.1741]
[1723196188744,71.94,157.88,157.84,22.1741]
[1723196189540,26.94,157.87,157.84,15.8387]
[1723196189739,45.0,157.86,157.84,15.8387]
[1723196189942,45.0,157.86,157.82,6.3362]
[1723196190141,45.0,157.86,157.81,15.8415]
[1723196190142,26.94,157.85,157.81,15.8415]
[1723196190367,26.94,157.85,157.81,22.1779]
[1723196190835,26.94,157.85,157.82,6.3363]
[1723196191236,71.94,157.86,157.83,6.3358]
[1723196191774,26.94,157.88,157.84,6.3354]
[1723196191945,45.0,157.87,157.84,6.3354]
[1723196192149,26.94,157.89,157.85,6.3351]
[1723196192469,45.0,157.88,157.85,6.3351]
[1723196193264,45.0,157.88,157.86,6.3347]
[1723196193637,71.94,157.89,157.83,15.839]
[1723196193860,26.94,157.88,157.83,15.839]
[1723196194041,71.94,157.87,157.83,15.839]
[1723196194238,45.0,157.86,157.83,15.839]
[1723196194639,26.94,157.87,157.83,15.839]
[1723196194841,45.0,157.86,157.83,15.839]
[1723196195151,71.94,157.86,157.83,15.839]
[1723196195366,26.94,157.85,157.81,6.3366]
[1723196195663,33.2748,157.86,157.81,6.3366]
[1723196195862,26.94,157.86,157.82,6.3362]
[1723196196043,33.2747,157.86,157.82,6.3362]
[1723196196445,26.94,157.86,157.82,6.3362]
[1723196196651,33.2744,157.87,157.82,6.3362]
[1723196197855,6.3347,157.86,157.81,6.3366]
[1723196199274,71.94,157.85,157.79,0.8177295]
[1723196199464,6.337,157.81,157.79,0.8177295]
[1723196200067,6.3364,157.82,157.79,0.8177295]
[1723196200369,26.94,157.81,157.79,0.8177295]
[1723196200748,26.94,157.8,157.79,0.8177295]
[1723196200956,16.1534,157.84,157.79,0.8177295]
[1723196201271,26.94,157.82,157.79,0.8177295]
[1723196201867,43.0934,157.84,157.79,7.1552295]
[1723196202078,33.2754,157.85,157.8,6.3369]
[1723196202957,26.94,157.87,157.81,15.8412]
[1723196203151,26.94,157.87,157.84,6.3354]
[1723196203386,33.2736,157.89,157.83,15.8392]
[1723196203677,6.177,157.95,157.86,26.94]
[1723196203851,26.94,157.94,157.87,42.7752]
[1723196204251,6.3319,157.93,157.88,6.3338]
[1723196204483,33.2719,157.93,157.88,6.3338]
[1723196204970,26.94,157.93,157.89,6.3334]
[1723196205160,33.2712,157.95,157.9,6.3329]
[1723196205355,33.2712,157.95,157.91,6.3327]
[1723196205356,26.94,157.95,157.91,6.3327]
[1723196205556,26.94,157.95,157.89,15.833]
[1723196205557,26.94,157.97,157.93,6.3318]
[1723196205761,6.3303,157.97,157.91,22.1633]
[1723196206075,6.3303,157.97,157.88,50.394]
[1723196206076,6.3311,157.95,157.9,6.3331]
[1723196206863,6.3307,157.96,157.91,6.3327]
[1723196207180,44.60442719,157.99,157.88,50.394]
[1723196207378,34.68,157.99,157.88,50.394]
[1723196207675,34.68,157.99,157.92,15.8298]
[1723196207856,6.3314,157.95,157.9,6.333]
[1723196208056,6.332,157.93,157.89,15.8336]
[1723196208470,6.3315,157.94,157.89,22.167]
[1723196208670,45.0,157.93,157.89,22.167]
[1723196209854,79.68,157.93,157.86,15.8366]
[1723196210059,6.3323,157.92,157.86,15.8366]
[1723196210259,45.0,157.91,157.88,6.3338]
[1723196210661,45.0,157.91,157.87,6.3342]
[1723196211280,51.3329,157.91,157.86,22.1712]
[1723196211463,6.3331,157.9,157.86,15.8366]
[1723196211661,6.3336,157.89,157.84,6.3354]
[1723196211963,45.0,157.88,157.85,6.335]
[1723196213254,45.0,157.88,157.84,6.3355]
[1723196213786,45.0,157.88,157.83,15.8394]
[1723196213787,45.0,157.88,157.85,6.3351]
[1723196214261,45.0,157.88,157.83,15.8394]
[1723196214262,22.5046,157.72,157.63,0.8177295]
[1723196214585,6.3407,157.72,157.64,30.0]
[1723196214774,6.3412,157.7,157.64,36.58579954]
[1723196214994,6.3415,157.69,157.64,30.0]
[1723196215294,9.93792441,157.73,157.64,15.8583]
[1723196215462,1.26714906,157.72,157.67,6.3423]
[1723196215659,1.26714906,157.73,157.67,22.1975]
[1723196215877,34.68,157.76,157.66,6.3427]
[1723196215878,7.60744906,157.72,157.66,6.3427]
[1723196216060,1.26714906,157.71,157.64,34.68]
[1723196216261,1.26714906,157.83,157.69,34.68]
[1723196216459,6.3399,157.73,157.67,6.3421]
[1723196216666,34.68,157.75,157.63,35.4977295]
[1723196216667,6.3408,157.71,157.63,35.4977295]
[1723196216886,1.26714906,157.74,157.66,6.3426]
[1723196217068,35.94714906,157.73,157.65,22.2003]
[1723196217267,41.0203,157.73,157.65,15.8572]
[1723196217475,6.3399,157.74,157.68,6.3419]
[1723196217678,35.94714906,157.75,157.65,15.8572]
[1723196217989,6.3415,157.69,157.63,7.1616295]
[1723196218164,35.94714906,157.73,157.65,6.3431]
[1723196218364,45.0,157.72,157.63,0.8177295]
[1723196218981,45.0,157.72,157.68,6.3419]
[1723196219283,45.0,157.72,157.67,6.3423]
[1723196220285,7.60704906,157.73,157.67,6.3421]
[1723196220786,6.339,157.76,157.7,6.3411]
[1723196221011,16.27371021,157.78,157.71,6.3406]
[1723196221164,16.27371021,157.78,157.68,34.68]
[1723196221165,1.26714906,157.77,157.68,34.68]
[1723196221366,6.34,157.73,157.68,34.68]
[1723196221570,6.3395,157.74,157.68,41.0218]
[1723196221771,6.3407,157.71,157.66,15.856]
[1723196222079,9.93541021,157.78,157.69,15.8534]
[1723196222274,6.3391,157.76,157.7,6.3409]
[1723196222472,9.93541021,157.78,157.69,15.8534]
[1723196222675,35.94714906,157.77,157.66,34.68]
[1723196223180,6.3404,157.72,157.66,34.68]
[1723196223364,6.34,157.73,157.67,6.3419]
[1723196223586,6.3395,157.74,157.69,6.3412]
[1723196224389,6.34,157.73,157.68,22.1963]
[1723196224773,25.78031021,157.78,157.65,22.2005]
[1723196224774,6.3412,157.7,157.65,22.2005]
[1723196225269,6.3412,157.7,157.64,34.68]
[1723196225270,6.3403,157.73,157.67,22.197]
[1723196225679,1.26714906,157.72,157.65,6.3431]
[1723196225878,6.3412,157.7,157.65,6.3431]
[1723196226077,7.60864906,157.69,157.64,6.3435]
[1723196226278,6.3422,157.68,157.63,16.6766295]
[1723196226470,1.26714906,157.67,157.63,0.8177295]
[1723196226666,34.68,157.71,157.63,0.8177295]
[1723196226667,1.26714906,157.66,157.63,0.8177295]
[1723196226875,1.26714906,157.7,157.63,0.8177295]
[1723196227183,34.68,157.69,157.63,0.8177295]
[1723196227696,34.68,157.69,157.63,7.1613295]
[1723196227697,45.0,157.68,157.63,7.1613295]
[1723196227869,45.0,157.7,157.63,7.1613295]
[1723196228170,45.0,157.7,157.63,0.8177295]
[1723196228171,6.3423,157.67,157.63,0.8177295]
[1723196228373,6.3428,157.66,157.63,0.8177295]
[1723196228585,1.26714906,157.68,157.63,0.8177295]
[1723196228770,6.3427,157.66,157.63,0.8177295]
[1723196228965,6.3424,157.67,157.63,0.8177295]
[1723196229192,52.60984906,157.66,157.63,0.8177295]
[1723196229366,51.3427,157.66,157.63,0.8177295]
[1723196229569,6.3431,157.65,157.63,0.8177295]
[1723196229968,51.3435,157.64,157.63,0.8177295]
[1723196230192,6.3435,157.64,157.63,0.8177295]
[1723196230495,51.3435,157.64,157.63,0.8177295]
[1723196231392,52.61064906,157.64,157.63,0.8177295]
[1723196231590,51.3435,157.64,157.63,0.8177295]
[1723196231892,6.3435,157.64,157.63,0.8177295]
[1723196234083,7.61064906,157.64,157.63,0.8177295]
[1723196234267,6.3435,157.64,157.63,0.8177295]
[1723196235290,52.61064906,157.64,157.63,0.8177295]
[1723196235588,51.3435,157.64,157.63,0.8177295]
[1723196235997,52.61064906,157.64,157.63,0.8177295]
[1723196236191,51.3435,157.64,157.63,0.8177295]
[1723196237578,87.29064906,157.64,157.63,0.8177295]
[1723196238789,107.29064906,157.64,157.63,0.8177295]
[1723196239199,106.0235,157.64,157.63,2.95e-05]
[1723196239412,106.0235,157.64,157.49,7.85812326]
[1723196239413,15.865,157.58,157.49,6.5886]
[1723196239695,99.68,157.64,157.51,6.3487]
[1723196239696,6.3468,157.56,157.51,6.3487]
[1723196239901,34.68,157.6,157.52,15.8708]
[1723196240193,34.68,157.64,157.49,6.5886]
[1723196240377,65.0,157.63,157.54,34.68]
[1723196240580,45.0,157.63,157.54,50.5481]
[1723196241095,6.3447,157.62,157.54,50.5481]
[1723196241298,6.3451,157.61,157.56,6.3467]
[1723196241501,6.3444,157.62,157.57,6.3463]
[1723196241815,6.3463,157.58,157.52,41.0282]
[1723196242101,6.3463,157.58,157.53,6.3479]
[1723196242307,6.3456,157.59,157.54,6.3475]
[1723196244603,6.3456,157.59,157.52,50.5502]
[1723196244898,6.3464,157.57,157.52,50.5502]
[1723196245324,6.3464,157.57,157.52,56.8982]
[1723196245611,15.863,157.6,157.5,34.68]
[1723196245776,45.0,157.59,157.5,34.68]
[1723196247004,6.3464,157.57,157.52,56.8987]
[1723196247304,45.0,157.59,157.52,50.5504]
[1723196247605,6.3467,157.57,157.52,56.8987]
[1723196247800,45.0,157.59,157.53,27.1]
[1723196248102,45.0,157.59,157.53,33.4478]
[1723196248103,6.3463,157.58,157.53,33.4478]
[1723196248303,6.3464,157.57,157.53,27.1]
[1723196248481,6.3464,157.57,157.52,49.3187]
[1723196249502,6.3467,157.56,157.52,49.3187]
[1723196249695,6.3472,157.55,157.52,27.1]
[1723196249894,72.1,157.59,157.52,6.3483]
[1723196250106,27.1,157.58,157.52,6.3483]
[1723196250303,45.0,157.57,157.52,6.3483]
[1723196250511,6.3468,157.56,157.51,33.4487]
[1723196252101,6.3468,157.56,157.51,6.3487]
[1723196252497,27.1,157.59,157.52,27.1]
[1723196252702,27.1,157.55,157.49,6.5886]
[1723196253011,27.1,157.57,157.5,27.1]
[1723196253588,6.3471,157.56,157.51,6.3487]
[1723196253790,6.3472,157.55,157.51,6.3487]
[1723196254100,6.3467,157.57,157.52,33.4483]
[1723196254304,6.3468,157.56,157.52,27.1]
[1723196254488,27.1,157.59,157.52,27.1]
[1723196254489,6.3464,157.57,157.52,6.3483]
[1723196255083,6.3464,157.57,157.51,6.3487]
[1723196255084,6.3468,157.56,157.51,6.3487]
[1723196255606,6.3471,157.55,157.51,6.3487]
[1723196255808,27.1,157.56,157.5,49.3212]
[1723196256111,27.1,157.56,157.5,22.2212]
[1723196256290,6.3476,157.54,157.5,15.8721]
[1723196256813,6.3476,157.54,157.5,42.9721]
[1723196257213,6.3476,157.54,157.5,15.8721]
[1723196257587,27.1,157.52,157.47,0.8177295]
[1723196257788,1.26714906,157.51,157.47,7.1678295]
[1723196258207,6.3484,157.52,157.47,7.1678295]
[1723196258405,6.3484,157.52,157.48,6.3499]
[1723196258912,6.3484,157.52,157.47,7.1680295]
[1723196259107,1.26714906,157.51,157.47,7.1680295]
[1723196259406,1.26714906,157.51,157.47,0.8177295]
[1723196259407,6.3499,157.49,157.47,0.8177295]
[1723196259613,33.45,157.48,157.47,0.8177295]
[1723196259789,78.45,157.48,157.47,0.8177295]
[1723196260408,79.71714906,157.48,157.47,0.8177295]
[1723196260605,78.45,157.48,157.47,0.8177295]
[1723196261029,14.06065095,157.53,157.47,7.1679295]
[1723196261308,27.1,157.51,157.47,0.8177295]
[1723196261504,6.35,157.48,157.47,0.8177295]
[1723196261687,52.61714906,157.48,157.47,0.8177295]
[1723196261889,79.71714906,157.48,157.47,0.8177295]
[1723196262091,99.71714906,157.48,157.47,0.8177295]
[1723196262588,6.3517,157.44,157.39,6.3532]
[1723196262787,27.1,157.46,157.38,42.9848]
[1723196262998,45.0,157.45,157.39,27.1]
[1723196263212,65.0,157.48,157.41,27.1]
[1723196263213,27.1,157.48,157.41,27.1]
[1723196263393,27.1,157.48,157.41,33.4524]
[1723196263394,6.3508,157.46,157.41,33.4524]
[1723196263716,6.35,157.48,157.43,6.3516]
[1723196264006,6.3496,157.49,157.44,6.3516]
[1723196264306,27.1,157.51,157.44,22.2298]
[1723196264502,38.111,157.53,157.43,6.3519]
[1723196264503,27.1,157.5,157.43,6.3519]
[1723196264913,6.35,157.48,157.43,6.3519]
[1723196265683,6.3511,157.46,157.42,33.4523]
[1723196265891,6.35,157.48,157.43,6.3517]
[1723196266385,6.3505,157.47,157.42,22.2327]
[1723196266618,15.8729,157.51,157.42,15.8804]
[1723196266619,1.26714906,157.46,157.42,15.8804]
[1723196266905,27.1,157.48,157.42,15.8804]
[1723196267104,6.3499,157.49,157.44,6.3515]
[1723196267331,51.3501,157.48,157.42,49.3324]
[1723196267487,6.3508,157.46,157.42,22.2324]
[1723196267683,27.1,157.5,157.43,6.3519]
[1723196268113,45.0,157.49,157.43,6.3519]
[1723196268321,6.3504,157.47,157.43,6.3519]
[1723196268491,6.3504,157.47,157.42,22.2327]
[1723196270899,6.3504,157.47,157.39,47.1331]
[1723196270900,27.1,157.45,157.39,15.8839]
[1723196271091,33.4519,157.44,157.39,22.2375]
[1723196271293,51.3521,157.43,157.39,15.8839]
[1723196271602,6.3524,157.42,157.37,27.1]
[1723196271799,6.3524,157.42,157.37,6.3543]
[1723196272112,45.0,157.43,157.36,42.9867]
[1723196272291,45.0,157.43,157.37,27.1]
[1723196272489,45.0,157.43,157.39,6.3536]
[1723196273307,45.0,157.43,157.38,42.9843]
[1723196273308,6.3519,157.44,157.4,6.3531]
[1723196273511,27.1,157.49,157.41,27.1]
[1723196273702,27.1,157.49,157.44,6.3515]
[1723196273703,33.4497,157.49,157.44,6.3515]
[1723196273891,6.3497,157.49,157.44,6.3515]
[1723196274094,6.3493,157.5,157.45,6.3511]
[1723196274322,27.1,157.51,157.43,27.1]
[1723196274508,27.1,157.5,157.43,27.1]
[1723196274818,6.3491,157.51,157.46,6.3505]
[1723196275007,6.3493,157.5,157.45,33.4511]
[1723196275401,6.3496,157.49,157.44,49.3298]
[1723196275713,6.35,157.48,157.44,15.8783]
[1723196275919,6.3504,157.47,157.42,49.2571]
[1723196276122,27.1,157.5,157.43,27.1]
[1723196276303,27.1,157.51,157.43,42.9793]
[1723196276619,20.0,157.5,157.44,27.1]
[1723196277120,15.868,157.55,157.46,6.3507]
[1723196277121,27.1,157.52,157.46,6.3507]
[1723196277307,6.3484,157.52,157.47,6.3503]
[1723196277908,6.3488,157.51,157.46,33.4507]
[1723196278110,27.1,157.53,157.45,42.9773]
[1723196278428,6.3497,157.49,157.45,15.8773]
[1723196278712,6.3492,157.5,157.45,22.2284]
[1723196279121,6.3484,157.52,157.47,6.3503]
[1723196279310,6.3496,157.49,157.45,49.3284]
[1723196279498,6.3496,157.49,157.45,42.9773]
[1723196279700,6.35,157.48,157.44,6.3515]
[1723196279920,6.3495,157.5,157.44,6.3515]
[1723196280227,6.3488,157.51,157.44,42.9783]
[1723196280421,6.3488,157.51,157.46,6.3507]
[1723196280605,6.3492,157.5,157.45,6.3511]
[1723196280797,6.3488,157.51,157.46,6.3507]
[1723196281219,6.3495,157.5,157.44,49.3295]
[1723196281518,6.3488,157.51,157.44,42.9783]
[1723196281720,6.3488,157.51,157.46,6.3504]
[1723196281928,6.3484,157.52,157.47,6.3502]
[1723196282221,28.36714906,157.52,157.45,27.1]
[1723196282724,6.3488,157.51,157.46,6.3507]